[Event "Austrian Bundesliga 2023-24"]
[Site "Austria"]
[Date "2024.03.24"]
[Round "11.13"]
[White "Michalik, Peter"]
[Black "Baldauf, Marco"]
[Result "1/2-1/2"]
[ECO "B13"]
[WhiteElo "2562"]
[BlackElo "2481"]
[Annotator "TA"]
[PlyCount "76"]
[EventDate "2023.10.21"]
[EventType "team-tourn"]
[EventCountry "AUT"]
[SourceTitle "playchess.com"]
[Source "ChessBase"]
[SourceQuality "1"]
[TimeControl "40/5400+30:1800+30"]

{[%evp 35,76,-63,39,56,27,0,0,-12,0,-10,0,-78,-68,-1209,54,60,54,0,0,0,0,-2,56,0,0,0,0,0,0,0,0,0,0,0,0,0,0,0,0,0,0,0,0]} 1. e4 {[%emt 0:00:03]} c6 {[%emt 0:00:04]} 2. d4 {[%emt 0:00:13]} d5 {[%emt 0:00:03]} 3. exd5 {[%emt 0:00:06]} cxd5 {[%emt 0:00:04]} 4. Bd3 {[%emt 0:00:08]} Nf6 {[%emt 0:00:03]} 5. c3 {[%emt 0:00:09]} Bg4 {[%emt 0:00:04]} 6. Qb3 {[%emt 0:00:45]} Qc7 {[%emt 0:00:12]} 7. Ne2 {[%emt 0:00:56] B13: Caro-Kann: Exchange Variation and Panov-Botvinnik Attack.} Bxe2 {[%emt 0:01:32]} 8. Bxe2 {[%emt 0:00:08]} e6 {[%emt 0:00:02]} 9. Bg5 {[%emt 0:09:05]} Bd6 {[%emt 0:01:05]} 10. Nd2 {[%emt 0:00:25]} Nc6 {[%emt 0:00:31]} 11. g3 $146 {[%emt 0:01:13]} ({Predecessor:} 11. Nf3 Ne4 12. Bh4 O-O 13. Bg3 f5 14. Bxd6 Qxd6 15. Bb5 Qf4 16. Qd1 Ne7 17. Qc1 {0-1 Gruber,M (2155)-Loeffler,C (2166) AUT-chT2W 1213 2012 (10.5)}) 11... O-O-O {[%emt 0:06:23]} 12. a4 {[%emt 0:00:36]} Kb8 {[%emt 0:01:34]} 13. a5 {[%emt 0:01:21]} h6 {[%emt 0:05:27]} 14. Be3 {[%emt 0:02:05]} h5 {[%emt 0:18:42]} 15. Nf3 {[%emt 0:03:39]} Nxa5 {[%emt 0:09:10]} 16. Qa4 {[%emt 0:02:40]} b6 {[%emt 0:00:05]} 17. O-O {[%emt 0:08:42]} Ne4 {[%emt 0:13:34]} 18. Rfc1 {[%emt 0:03:37]} Nc4 {[%emt 0:03:54]} (18... h4 $1 $15 19. b4 Nc4 (19... Nxc3 $2 20. Rxc3 Qxc3 21. bxa5 $18) 20. Bxc4 dxc4 21. Nxh4 g5) 19. Bxc4 $14 {[%emt 0:16:03]} dxc4 {[%emt 0:00:04]} 20. b3 {[%emt 0:03:05]} h4 {[%emt 0:02:09]} 21. bxc4 {[%emt 0:05:31]} hxg3 {[%emt 0:00:40]} 22. hxg3 {[%emt 0:00:25]} Bxg3 {[%emt 0:24:41]} 23. d5 {[%emt 0:29:49]} (23. c5 $11 Bxf2+ 24. Bxf2) 23... Rh3 {[%emt 0:07:18]} 24. Bxb6 $2 {[%emt 0:04:15][%mdl 8192] [#]} (24. c5 $15 Nxc5 (24... Bxf2+ 25. Bxf2 Rg3+ 26. Kf1 $11) 25. Bxc5 Qxc5 26. Qxa7+ Kc8 27. Qa8+ (27. Qxf7 $2 Qxf2#) 27... Bb8 28. Ra7 Qxd5 (28... Rxf3 29. Qb7#) (28... Rg3+ 29. Kf1 $11) 29. Qxd5 exd5 (29... Rxd5 30. Rxf7 Rf5 31. Rxf5 $17) 30. Rxf7) 24... Bxf2+ $2 {[%emt 0:00:06]} (24... Qxb6 $1 $19 {[%csl Ge4,Gg3][%cal Rb6f2][%mdl 512]} 25. Rcb1 Bxf2+ 26. Kg2 Rg3+ 27. Kf1 Rxf3 28. Qxa7+ Kc8 29. Qa8+ Kd7 (29... Kc7 $2 30. d6+ Rxd6 31. Qxe4 $19) 30. Qa4+ Ke7 31. Rxb6 Bxb6+ 32. Ke1 Rh8 (32... Rxc3 $2 33. Qb4+ Bc5 34. Qb7+ Rd7 35. Qb8 $19) (32... exd5 $2 33. Qb4+ Bc5 34. Qb7+ Rd7 35. Qb8 $19) 33. d6+ Nxd6 (33... Kxd6 34. Qd1+ $17)) 25. Bxf2 $14 {[%emt 0:00:08]} Nxf2 {[%emt 0:00:51]} (25... Rxf3 $2 26. Rcb1+ Kc8 27. Qa6+ Kd7 28. Rb7 $18 (28. Bxa7 $2 Qg3+ 29. Kh1 Rh8#)) (25... Rg3+ 26. Kf1 Nxf2 (26... Rxf3 $2 27. Rcb1+ Kc8 28. Qa6+ Kd7 29. Rb7 $18) 27. Rcb1+ (27. Kxf2 exd5 28. Qa5 Qxa5 $18) 27... Kc8 28. Qa6+ (28. Kxf2 Rd7 $18) 28... Kd7 29. Rb7 $18 (29. Kxf2 Qf4 $18)) 26. Rcb1+ {[%emt 0:04:56]} (26. Qb5+ Ka8) (26. Ne5 $1 $14 Rh1+ (26... exd5 27. Nc6+) 27. Kg2 (27. Kxf2 Qb6+ 28. c5 Qxc5+ 29. Qd4 Qxd4+ 30. cxd4 Rxc1 $18) 27... Rh2+ 28. Kf1 (28. Kxh2 Ng4+ 29. Kg2 Nxe5 $14) 28... Rh1+ (28... Qxe5 29. Rcb1+ Kc8 30. Qc6+ Qc7 31. Qa6+ Kd7 32. Rb7 $18) 29. Kg2 (29. Kxf2 Qb6+ 30. c5 Qxc5+ 31. Qd4 Qxd4+ 32. cxd4 Rxc1 $14) 29... Rh2+ 30. Kxh2 Ng4+ (30... Qxe5+ $2 31. Kg2 $18) 31. Kg2 Nxe5 32. Qb3+ Kc8 33. Qa4) 26... Ka8 $11 {[%emt 0:00:15]} 27. Ne5 {[%emt 0:01:00]} (27. d6 $5 Qc5 $8 (27... Qxd6 28. Qxa7#) 28. Rb5 $11) 27... Rh1+ $1 {[%emt 0:02:20]} (27... Qxe5 28. Qxa7#) (27... exd5 28. Qc6+ (28. Kxf2 Qc5+ 29. Kf1 Rh1+ 30. Ke2 Rh2+ 31. Kd3 dxc4+ 32. Ke4 Re2+ 33. Kf3 Qe3+ 34. Kg4 Rg2+ 35. Kh5 Rh8#) 28... Qxc6 29. Nxc6 Rh1+ 30. Kxf2 (30. Kg2 Rh2+ 31. Kxh2 Rh8+ 32. Kg2 Rh2+ 33. Kxh2 Ng4+ 34. Kg3 dxc4 35. Rxa7#) 30... Rh2+ 31. Kg1) 28. Kg2 {[%emt 0:02:24] [#]} (28. Kxf2 $5 Qc5+ $8 29. Kf3 Rh3+ 30. Kg4 Rh4+ 31. Kf3 (31. Kxh4 Qf2+ 32. Kg4 f5+ 33. Kh5 Qh2+ 34. Kg6 Qh6+ 35. Kf7 Qf6#) 31... Rh3+ 32. Kg4 Rh4+ 33. Kf3 (33. Kxh4 Qf2+ 34. Kg4 f5+ 35. Kh5 Qh2+ 36. Kg6 Qh6+ 37. Kf7 Qf6#) 33... Rh3+ $11) 28... Rh2+ {[%emt 0:00:17]} (28... Rxb1 $1 $11 29. Rxb1 Ne4 (29... Qxe5 30. Qc6#)) 29. Kg1 {[%emt 0:00:35]} (29. Kxh2 $14 Ng4+ 30. Kg2 Nxe5 31. Qb5) 29... Nh3+ $11 {[%emt 0:00:43]} (29... Qxe5 30. Qxa7#) 30. Kxh2 {[%emt 0:00:34]} Qxe5+ {[%emt 0:00:03]} 31. Kh1 $1 (31. Kxh3 Rh8+ 32. Kg4 Qf5+ 33. Kg3 Rh3+ (33... exd5 34. Qxa7#) 34. Kg2 Qf3+ 35. Kg1 Rh1#) 31... Qe4+ {[%emt 0:00:21]} 32. Kh2 {[%emt 0:00:57]} Qf4+ {[%emt 0:00:23]} 33. Kh1 {[%emt 0:00:21]} (33. Kxh3 $2 Rh8+ (33... exd5 34. Qxa7#) 34. Kg2 Rh2+ 35. Kg1 Qf2#) 33... Qf3+ 34. Kh2 Qe2+ {[%emt 0:03:06]} 35. Kh1 $1 {[%emt 0:00:34]} (35. Kxh3 $2 Qf3+ (35... exd5 36. Qxa7#) 36. Kh4 Rh8+ 37. Kg5 Rh5#) 35... Qe4+ {[%emt 0:00:31]} 36. Kh2 {[%emt 0:00:04]} Qe2+ {[%emt 0:01:13]} 37. Kh1 $1 {[%emt 0:00:01]} (37. Kxh3 $2 {leads to mate.} Qf3+ (37... exd5 38. Qxa7#) 38. Kh4 Rh8+ 39. Kg5 Rh5#) 37... Nf2+ {[%emt 0:00:05]} 38. Kg1 {[%emt 0:00:08]} Nh3+ {[%emt 0:00:04]} ({Worse is} 38... exd5 39. Qxa7#) 1/2-1/2

[Event "Austrian Bundesliga 2023-24"]
[Site "Austria"]
[Date "2024.03.24"]
[Round "11.14"]
[White "Prusikin, Michael"]
[Black "Vogel, Roven"]
[Result "1/2-1/2"]
[ECO "D38"]
[WhiteElo "2508"]
[BlackElo "2521"]
[Annotator "TA"]
[PlyCount "61"]
[EventDate "2023.10.21"]
[EventType "team-tourn"]
[EventCountry "AUT"]
[SourceTitle "playchess.com"]
[Source "ChessBase"]
[SourceQuality "1"]
[TimeControl "40/5400+30:1800+30"]

{[%evp 19,61,5,0,-3,0,0,0,12,22,6,2,6,9,15,13,2,13,0,36,16,58,50,52,57,71,72,79,63,56,45,76,40,36,11,19,0,0,0,0,0,0,0,0,0]} 1. d4 {[%emt 0:00:03]} Nf6 {[%emt 0:00:10]} 2. c4 {[%emt 0:00:05]} e6 {[%emt 0:00:10]} 3. Nf3 {[%emt 0:00:07]} d5 {[%emt 0:00:18]} 4. Nc3 {[%emt 0:00:05]} Bb4 {[%emt 0:00:11]} 5. cxd5 {[%emt 0:00:30]} exd5 {[%emt 0:00:10]} 6. Bg5 {[%emt 0:00:12]} h6 {[%emt 0:01:24]} 7. Bxf6 {[%emt 0:00:13]} Qxf6 {[%emt 0:00:09]} 8. Qa4+ {[%emt 0:00:09]} Nc6 {[%emt 0:00:09][%cal Bb8c6,Bc6e7,Be7f5][%mdl 32]} 9. e3 {[%emt 0:00:08]} O-O {[%emt 0:06:22]} 10. Be2 {[%emt 0:00:39]} Rd8 {[%emt 0:04:08]} 11. Rc1 {[%emt 0:04:42]} Bf8 {[%emt 0:04:14]} 12. O-O {[%emt 0:02:33]} Ne7 {[%emt 0:00:48]} 13. b4 {[%emt 0:08:21]} Nf5 {[%emt 0:07:02]} 14. Qb3 {[%emt 0:04:11]} c6 {[%emt 0:07:22]} 15. b5 {[%emt 0:01:19]} Bd6 {[%emt 0:00:30] Repels Ne5} 16. bxc6 {[%emt 0:03:19]} bxc6 {[%emt 0:00:16]} 17. Na4 {[%emt 0:00:44][%cal Ob3c3]} Rb8 {[%emt 0:07:48]} 18. Qc3 {[%emt 0:02:35]} Ne7 {[%emt 0:06:22]} 19. Ne5 {[%emt 0:03:17]} Bxe5 {[%emt 0:05:24]} 20. dxe5 {[%emt 0:00:11]} Qg6 {[%emt 0:00:32]} 21. Rfd1 {[%emt 0:10:38][%cal Bf1d1,Bd1d4,Bd4a4][%mdl 32]} Bh3 {[%emt 0:10:02]} 22. Bf1 {[%emt 0:00:46]} h5 {[%emt 0:01:44]} 23. Nc5 {[%emt 0:05:18]} (23. Rd4 {feels hotter.} Nf5 24. Rf4 Qg5 25. e6) 23... h4 {[%emt 0:02:56][%cal Oh3g2] [#] Strongly threatening ...Bxg2!} 24. Kh1 {[%emt 0:04:00]} Bg4 {[%emt 0:00:43]} 25. f3 {[%emt 0:00:28]} Be6 {[%emt 0:01:54]} 26. Rd4 {[%emt 0:09:47]} Qh6 {[%emt 0:03:04] The position is equal.} 27. Ra4 {[%emt 0:05:33]} Nf5 {[%emt 0:05:42]} 28. Re1 {[%emt 0:00:57][%cal Oh1g1]} (28. Rxa7 Nxe3 (28... Qxe3 29. Qxe3 Nxe3 30. Bd3 $17) 29. Ra4 (29. Nxe6 fxe6 30. Qxc6 h3 $19) 29... h3 $17) 28... Ng3+ {[%emt 0:01:45]} 29. Kg1 $1 {[%emt 0:00:06]} (29. hxg3 $2 {gets mated.} hxg3+) 29... Nxf1 {[%emt 0:00:09]} 30. Rxf1 {[%emt 0:01:12][%cal Oc5e6]} h3 {[%emt 0:00:19]} 31. g3 {[%emt 0:03:21] Weighted Error Value: White=0.08 (flawless) /Black=0.06 (flawless) .  Inaccurate:     	White=1     	Black=2      OK:         	White=9     	Black=10     Best:        	---       	Black=2      Strong:       	White=1     	---} 1/2-1/2

[Event "Austrian Bundesliga 2023-24"]
[Site "Austria"]
[Date "2024.03.24"]
[Round "11.15"]
[White "Votava, Jan"]
[Black "Berchtenbreiter, Maximilian"]
[Result "1-0"]
[ECO "A43"]
[WhiteElo "2441"]
[BlackElo "2486"]
[Annotator "TA"]
[PlyCount "99"]
[EventDate "2023.10.21"]
[EventType "team-tourn"]
[EventCountry "AUT"]
[SourceTitle "playchess.com"]
[Source "ChessBase"]
[SourceQuality "1"]
[TimeControl "40/5400+30:1800+30"]

{[%evp 12,99,56,52,91,44,46,41,68,52,145,60,124,95,123,119,123,129,85,0,0,0,0,0,93,93,89,83,117,129,277,258,273,214,211,0,289,0,231,192,306,294,305,202,234,216,287,219,209,216,318,280,257,231,277,238,349,311,298,0,327,0,301,288,326,137,320,221,204,151,231,29,34,34,31,67,204,204,1127,1080,1115,1114,1189,1205,1075,940,1904,1724,5314,2312]} 1. d4 {[%emt 0:00:02]} g6 {[%emt 0:00:22]} 2. c4 {[%emt 0:00:05]} Bg7 {[%emt 0:00:04]} 3. Nc3 {[%emt 0:00:08]} c5 {[%emt 0:02:31]} 4. d5 {[%emt 0:00:24]} Bxc3+ {[%emt 0:00:05]} 5. bxc3 {[%emt 0:00:02]} f5 {[%emt 0:00:03]} 6. e4 {[%emt 0:00:24]} fxe4 {[%emt 0:01:35]} 7. f3 {[%emt 0:00:31]} e5 {[%emt 0:05:04] A40: Unusual replies to 1 d4.} 8. Qc2 {[%emt 0:07:25]} (8. fxe4 $6 Qh4+ 9. g3 Qxe4+ 10. Qe2 Qxe2+ (10... Qxh1 $2 11. Qxe5+ Kf7 12. Qxh8 $18) 11. Bxe2 d6 $15) (8. Nh3 $16) 8... d6 {[%emt 0:08:03]} 9. fxe4 {[%emt 0:00:57]} Nf6 {[%emt 0:05:52]} 10. Be2 $146 {[%emt 0:03:42]} ({Predecessor:} 10. Nf3 Bg4 11. Be2 Bxf3 12. Bxf3 h5 13. O-O Nbd7 14. Bg5 O-O 15. Rf2 Qe7 16. Rb1 {1-0 Walczak,P (2469)-Zlotkowski,A (2452) ICCF GMN/019 email 2009}) 10... O-O {[%emt 0:10:31]} (10... h6 $14) 11. Nf3 {[%emt 0:06:45]} (11. Bh6 $16) 11... Bg4 {[%emt 0:04:00]} (11... Kg7 $1 $14) 12. O-O {[%emt 0:07:36]} Bxf3 {[%emt 0:00:03]} 13. Rxf3 {[%emt 0:01:02]} (13. gxf3 Nh5 $17) 13... Kg7 {[%emt 0:02:32]} 14. Bg5 {[%emt 0:21:17]} h6 {[%emt 0:00:28]} 15. Bxf6+ {[%emt 0:10:02]} ({White should play} 15. Bd2 $16) 15... Rxf6 $11 {[%emt 0:00:03]} 16. Rxf6 {[%emt 0:01:08]} Qxf6 {[%emt 0:08:04]} 17. Bg4 {[%emt 0:08:46]} Qd8 {[%emt 0:20:52]} (17... Na6 $11 {keeps the balance.}) 18. Rb1 $16 {[%emt 0:06:25]} b6 {[%emt 0:01:37]} 19. Qa4 $1 {[%emt 0:01:46]} a5 {[%emt 0:15:16]} 20. Qb5 {[%emt 0:00:53]} Ra6 {[%emt 0:00:04]} (20... h5 $16 21. Be6 (21. Qxb6 Qxb6 22. Rxb6 hxg4 $17) 21... Na6) 21. Be6 $18 {[%emt 0:01:24]} h5 {[%emt 0:01:26]} 22. Kh1 {[%emt 0:14:02]} Kh6 {[%emt 0:01:05]} 23. Kg1 {[%emt 0:00:30]} Kg7 $1 {[%emt 0:00:03]} 24. Kh1 {[%emt 0:00:28]} Kh6 $1 {[%emt 0:00:03]} 25. h3 $1 {[%emt 0:01:19]} Kg7 {[%emt 0:01:25]} (25... a4 $142 26. a3 Ra8 27. Qxb6 Na6 28. Qxd8 Rxd8) 26. Kg1 $18 {[%emt 0:00:06]} Kh6 {[%emt 0:02:31]} 27. Kh2 {[%emt 0:00:17]} Kg7 {[%emt 0:00:04]} 28. Kh1 {[%emt 0:00:05]} Qf8 {[%emt 0:04:48]} 29. Kg1 {[%emt 0:01:27] Hoping for Rf1.} Qd8 {[%emt 0:01:40]} 30. Kh2 {[%emt 0:02:43]} Qf8 {[%emt 0:00:33]} (30... h4 {was called for.} 31. Rf1 Ra7) 31. a3 {[%emt 0:00:30]} Qd8 {[%emt 0:02:07]} 32. Kg1 {[%emt 0:00:14]} a4 {[%emt 0:00:30]} 33. Kh2 {[%emt 0:00:39]} Qf8 {[%emt 0:00:12]} (33... Kh6 $142 34. Kh1 Kh7) 34. Kh1 {[%emt 0:00:26]} Qd8 {[%emt 0:00:55]} 35. Kh2 {[%emt 0:00:55]} Qf8 $1 {[%emt 0:01:09]} 36. Kh1 {[%emt 0:00:32]} Qd8 $1 {[%emt 0:00:09]} 37. Kg1 {[%emt 0:00:30]} h4 {[%emt 0:01:40]} 38. Kh2 {[%emt 0:01:31]} (38. Rf1 $18 Ra7 39. Qb2) 38... Qf8 $2 {[%emt 0:00:10]} (38... Kh7 $16 39. Kg1 Kg7) 39. Kh1 {[%emt 0:00:47] Qb2 is the strong threat.} Qd8 {[%emt 0:00:27]} 40. Kg1 {[%emt 0:00:00]} Kh6 {[%emt 0:00:00] [#]} 41. Bf7 $2 {[%emt 0:15:48]} (41. Kh2 $1 $18) 41... Ra7 $11 {[%emt 0:06:14]} 42. Qe8 {[%emt 0:04:10]} Qxe8 {[%emt 0:00:35]} 43. Bxe8 {[%emt 0:00:04]} Nd7 {[%emt 0:00:10] [#]} (43... Re7 $1 $14 44. Bxa4 Ra7) 44. Rf1 $1 $18 {[%emt 0:05:53] Rf7 would now be deadly.} (44. Bxd7 Rxd7 45. Kf2 (45. Rxb6 $2 {is the wrong capture.} Kg5 $19) 45... Rf7+ 46. Ke2 Rb7 $11) 44... Kg5 $2 {[%emt 0:05:04]} (44... b5 45. Bxd7 (45. cxb5 Nb6 $18) 45... Rxd7) 45. Rf7 $18 {[%emt 0:00:56]} Nf6 {[%emt 0:00:03]} 46. Rxa7 {[%emt 0:00:21]} Nxe8 {[%emt 0:00:03]} 47. Kf2 {[%emt 0:03:40]} Kf4 {[%emt 0:00:58]} 48. Rf7+ {[%emt 0:02:40]} Kxe4 {[%emt 0:00:14]} 49. Ke2 {[%emt 0:00:03]} g5 {[%emt 0:02:27]} 50. Kd2 {[%emt 0:00:14]} 1-0

[Event "Austrian Bundesliga 2023-24"]
[Site "Austria"]
[Date "2024.03.24"]
[Round "11.16"]
[White "Hess, Max"]
[Black "Lanka, Zigurds"]
[Result "1/2-1/2"]
[ECO "A38"]
[WhiteElo "2392"]
[BlackElo "2357"]
[Annotator "RC"]
[PlyCount "81"]
[EventDate "2023.10.21"]
[EventType "team-tourn"]
[EventCountry "AUT"]
[SourceTitle "playchess.com"]
[Source "ChessBase"]
[SourceQuality "1"]
[TimeControl "40/5400+30:1800+30"]

1. c4 {[%emt 0:00:08]} c5 {[%emt 0:00:17]} 2. Nf3 {[%emt 0:00:24]} Nf6 {[%emt 0:00:16]} 3. g3 {[%emt 0:00:13]} g6 {[%emt 0:00:17]} 4. Bg2 {[%emt 0:00:06]} Bg7 {[%emt 0:00:11]} 5. O-O {[%emt 0:00:31]} O-O {[%emt 0:00:37]} 6. Nc3 {[%emt 0:00:24]} Nc6 {[%emt 0:00:33]} 7. d3 {[%emt 0:02:41]} d6 {[%emt 0:00:36]} 8. a3 {[%emt 0:00:26]} a6 {[%emt 0:00:20]} 9. Rb1 {[%emt 0:00:12]} Rb8 {[%emt 0:00:13]} 10. b4 {[%emt 0:00:31]} cxb4 {[%emt 0:00:09]} 11. axb4 {[%emt 0:00:04]} b5 {[%emt 0:00:09]} 12. cxb5 {[%emt 0:00:05]} axb5 {[%emt 0:00:06]} 13. Bg5 {[%emt 0:00:12]} Be6 {[%emt 0:02:42]} 14. Qd2 {[%emt 0:03:45]} Qd7 {[%emt 0:00:46]} 15. Rfc1 {[%emt 0:10:54]} Rfc8 {[%emt 0:03:02]} 16. Bh6 {[%emt 0:01:53]} Bh3 {[%emt 0:00:29]} 17. Bh1 {[%emt 0:07:54]} Bg4 {[%emt 0:01:37]} 18. Bxg7 {[%emt 0:06:37]} Kxg7 {[%emt 0:00:20]} 19. Qb2 {[%emt 0:01:21]} e5 {[%emt 0:07:34]} 20. Nd1 {[%emt 0:23:49]} Bxf3 {[%emt 0:00:56]} 21. Bxf3 {[%emt 0:00:26]} Nd4 {[%emt 0:00:20]} 22. Bg2 {[%emt 0:01:25]} Rxc1 {[%emt 0:01:26]} 23. Rxc1 {[%emt 0:00:05]} Rc8 {[%emt 0:00:31]} 24. Kf1 {[%emt 0:03:37]} Rxc1 {[%emt 0:07:07]} 25. Qxc1 {[%emt 0:00:06]} Qa7 {[%emt 0:00:52]} 26. e3 {[%emt 0:07:05]} Ne6 {[%emt 0:00:27]} 27. Nc3 {[%emt 0:01:10]} Nc7 {[%emt 0:05:00]} 28. Qb2 {[%emt 0:01:08]} Nd7 {[%emt 0:06:55]} 29. Bc6 {[%emt 0:02:59]} Nb8 {[%emt 0:03:33]} 30. Bf3 {[%emt 0:02:42]} Nd7 {[%emt 0:00:39]} 31. h4 {[%emt 0:00:51]} Nf6 {[%emt 0:07:19]} 32. Qb3 {[%emt 0:08:12]} h5 {[%emt 0:01:51]} 33. Qa2 {[%emt 0:05:15]} Qxa2 {[%emt 0:10:42]} 34. Nxa2 {[%emt 0:00:04]} Nfd5 {[%emt 0:00:18]} 35. Ke2 {[%emt 0:02:24]} Ne7 {[%emt 0:03:01]} 36. Kd2 {[%emt 0:01:51]} f5 {[%emt 0:03:13]} 37. Nc3 {[%emt 0:02:43]} Kf6 {[%emt 0:11:25]} 38. d4 {[%emt 0:01:06]} e4 {[%emt 0:03:26]} 39. Be2 {[%emt 0:00:08]} Nc6 {[%emt 0:00:43]} 40. Nxb5 {[%emt 0:00:00]} Nxb5 {[%emt 0:00:00]} 41. Bxb5 {[%emt 0:02:53]} 1/2-1/2

[Event "Austrian Bundesliga 2023-24"]
[Site "Austria"]
[Date "2024.03.24"]
[Round "11.17"]
[White "Maiwald, Jens-Uwe"]
[Black "Kruckenhauser, Arthur"]
[Result "1/2-1/2"]
[ECO "B23"]
[WhiteElo "2438"]
[BlackElo "2355"]
[Annotator "RC"]
[PlyCount "146"]
[EventDate "2023.10.21"]
[EventType "team-tourn"]
[EventCountry "AUT"]
[SourceTitle "playchess.com"]
[Source "ChessBase"]
[SourceQuality "1"]
[TimeControl "40/5400+30:1800+30"]

1. e4 {[%emt 0:00:07]} c5 {[%emt 0:00:27]} 2. Nc3 {[%emt 0:01:46]} d6 {[%emt 0:00:32]} 3. f4 {[%emt 0:00:20]} g6 {[%emt 0:00:35]} 4. Nf3 {[%emt 0:00:52]} Bg7 {[%emt 0:02:55]} 5. Bb5+ {[%emt 0:02:08]} Bd7 {[%emt 0:05:40]} 6. a4 {[%emt 0:00:09]} Nc6 {[%emt 0:00:24]} 7. O-O {[%emt 0:01:06]} Nf6 {[%emt 0:11:39]} 8. d3 {[%emt 0:01:48]} O-O {[%emt 0:01:29]} 9. Be3 {[%emt 0:04:40]} a6 {[%emt 0:14:12]} 10. Bxc6 {[%emt 0:04:45]} Bxc6 {[%emt 0:02:39]} 11. Qe1 {[%emt 0:15:12]} b5 {[%emt 0:02:20]} 12. axb5 {[%emt 0:06:13]} axb5 {[%emt 0:00:09]} 13. Rxa8 {[%emt 0:13:29]} Qxa8 {[%emt 0:01:41]} 14. Qh4 {[%emt 0:00:46]} b4 {[%emt 0:03:21]} 15. Nd1 {[%emt 0:01:45]} Qa4 {[%emt 0:13:45]} 16. b3 {[%emt 0:02:00]} Qa2 {[%emt 0:00:22]} 17. Ne1 {[%emt 0:02:05]} Qa7 {[%emt 0:04:37]} 18. Nf3 {[%emt 0:13:30]} Qa2 {[%emt 0:02:43]} 19. Ne1 {[%emt 0:00:06]} Qa7 {[%emt 0:02:06]} 20. Nf3 {[%emt 0:07:23]} Qd7 {[%emt 0:05:33]} 21. Nf2 {[%emt 0:00:54]} Ra8 {[%emt 0:02:41]} 22. f5 {[%emt 0:03:51]} Ra2 {[%emt 0:04:16]} 23. fxg6 {[%emt 0:00:43]} fxg6 {[%emt 0:01:42]} 24. Rc1 {[%emt 0:03:43]} Bb7 {[%emt 0:02:49]} 25. Nd2 {[%emt 0:02:32]} Qe6 {[%emt 0:01:19]} 26. Nf3 {[%emt 0:02:24]} Bc8 {[%emt 0:00:50]} 27. h3 {[%emt 0:00:24]} Qd7 {[%emt 0:03:12]} 28. Bh6 {[%emt 0:02:05]} Bh8 {[%emt 0:02:18]} 29. Bg5 {[%emt 0:00:20]} Qe6 {[%emt 0:01:19]} 30. Kh1 {[%emt 0:01:35]} Bg7 {[%emt 0:01:19]} 31. Bh6 {[%emt 0:00:33]} Bh8 {[%emt 0:00:17]} 32. Be3 {[%emt 0:00:41]} Nh5 {[%emt 0:01:48]} 33. Ng4 {[%emt 0:01:04]} Bg7 {[%emt 0:02:17]} 34. Ng5 {[%emt 0:02:56]} Qd7 {[%emt 0:00:17]} 35. Rf1 {[%emt 0:01:45]} Rxc2 {[%emt 0:00:53]} 36. Nf7 {[%emt 0:00:13]} Bf6 {[%emt 0:02:11]} 37. Nfh6+ {[%emt 0:01:13]} Kg7 {[%emt 0:01:17]} 38. Nxf6 {[%emt 0:01:34]} exf6 {[%emt 0:01:00]} 39. g4 {[%emt 0:00:33]} Re2 {[%emt 0:00:29]} 40. Rf3 {[%emt 0:00:00]} Qe7 {[%emt 0:00:00]} 41. gxh5 {[%emt 0:06:15]} g5 {[%emt 0:04:59]} 42. Qg3 {[%emt 0:01:59]} Kxh6 {[%emt 0:00:39]} 43. h4 {[%emt 0:01:33]} Kxh5 {[%emt 0:04:08]} 44. hxg5 {[%emt 0:02:51]} fxg5 {[%emt 0:00:10]} 45. Rf7 {[%emt 0:00:55]} Qe5 {[%emt 0:06:49]} 46. Qf3+ {[%emt 0:05:25]} Kg6 {[%emt 0:00:19]} 47. Qxe2 {[%emt 0:00:09]} Kxf7 {[%emt 0:00:15]} 48. Qh5+ {[%emt 0:00:03]} Kg7 {[%emt 0:06:23]} 49. Bxg5 {[%emt 0:00:14]} Qe6 {[%emt 0:01:01]} 50. Bf4 {[%emt 0:01:39]} Qf6 {[%emt 0:05:14]} 51. Qh2 {[%emt 0:04:48]} Bg4 {[%emt 0:03:01]} 52. Qg3 {[%emt 0:01:09]} h5 {[%emt 0:00:34]} 53. Bxd6 {[%emt 0:01:09]} Qf1+ {[%emt 0:00:43]} 54. Kh2 {[%emt 0:00:14]} Qe2+ {[%emt 0:00:40]} 55. Kg1 {[%emt 0:00:08]} Qd1+ {[%emt 0:00:39]} 56. Kh2 {[%emt 0:00:16]} Qxb3 {[%emt 0:01:07]} 57. Qe5+ {[%emt 0:00:12]} Kg6 {[%emt 0:00:15]} 58. Qe8+ {[%emt 0:01:07]} Qf7 {[%emt 0:00:38]} 59. Qxf7+ {[%emt 0:00:18]} Kxf7 {[%emt 0:00:05]} 60. Bxc5 {[%emt 0:00:05]} b3 {[%emt 0:00:02]} 61. Ba3 {[%emt 0:00:11]} h4 {[%emt 0:00:22]} 62. d4 {[%emt 0:00:32]} Ke6 {[%emt 0:00:38]} 63. Kg2 {[%emt 0:00:12]} Kf6 {[%emt 0:00:38]} 64. Bc1 {[%emt 0:00:58]} Bc8 {[%emt 0:00:15]} 65. Kf3 {[%emt 0:00:56]} Bd7 {[%emt 0:00:48]} 66. Kf4 {[%emt 0:00:16]} h3 {[%emt 0:00:32]} 67. Kg3 {[%emt 0:00:13]} Ke7 {[%emt 0:00:36]} 68. Ba3+ {[%emt 0:00:33]} Kd8 {[%emt 0:00:27]} 69. d5 {[%emt 0:01:33]} Kc7 {[%emt 0:00:39]} 70. e5 {[%emt 0:00:36]} Bf5 {[%emt 0:00:08]} 71. e6 {[%emt 0:00:41]} Kd8 {[%emt 0:00:22]} 72. Kh2 {[%emt 0:00:23]} Ke8 {[%emt 0:00:14]} 73. Kg3 {[%emt 0:00:10]} Kd8 {[%emt 0:00:05]} 1/2-1/2